[Event "24th Hoogeschool Zeeland 2022"]
[Site "Vlissingen"]
[Date "2022.08.12"]
[Round "8.19"]
[White "De Jong, Tom"]
[Black "Le Clercq, Maxim"]
[Result "1-0"]
[ECO "B12"]
[WhiteElo "2203"]
[BlackElo "2049"]
[Annotator "TA"]
[PlyCount "47"]
[EventDate "2022.08.05"]
[EventType "swiss"]
[EventCountry "NED"]
[SourceTitle "playchess.com"]
[Source "ChessBase"]
[SourceQuality "1"]
[TimeControl "40/5400+30:1800+30"]

{[%evp 11,47,12,23,-4,16,16,19,16,26,23,38,45,38,37,46,36,38,44,47,35,50,35,43,45,250,249,29979,944,29980,29981,29976,29977,29991,29992,29994,29994,29994,29986]} 1. e4 {[%emt 0:00:07][%cal Be2e4,Be4e5][%mdl 32]} c6 {[%emt 0:06:54]} 2. d4 {[%emt 0:00:07]} d5 {[%emt 0:00:04]} 3. e5 {[%emt 0:00:05]} Bf5 {[%emt 0:00:24]} 4. h4 {[%emt 0:00:16]} h5 {[%emt 0:00:06]} 5. Bd3 {[%emt 0:00:07]} Bxd3 {[%emt 0:00:04]} 6. Qxd3 {[%emt 0:00:07]} e6 {[%emt 0:00:48]} 7. Bg5 {[%emt 0:00:29] B12: Caro-Kann: Advance Variation.} Qa5+ {[%emt 0:02:33]} (7... Qb6 $5 {[%cal Rb6b2]}) 8. Nd2 {[%emt 0:01:43]} c5 {[%emt 0:04:44]} 9. dxc5 {[%emt 0:06:48] The position is equal.} Nd7 {[%emt 1:19:23]} 10. Ngf3 {[%emt 0:03:08]} Nxc5 {[%emt 0:00:00]} 11. Qe2 {[%emt 0:00:14]} Ne4 {[%emt 0:00:00]} 12. O-O {[%emt 0:07:51] [#]} Nxg5 $146 {[%emt 0:00:00]} ({Predecessor:} 12... Nxd2 13. Bxd2 Qa6 14. Qxa6 bxa6 15. c4 dxc4 16. Rfc1 Rc8 17. Rc2 Bc5 18. Rac1 Bb6 19. Rxc4 Rxc4 20. Rxc4 {½-½ (41) Matinian,N (2473)-Turov,M (2609) St Petersburg 2015}) 13. Nxg5 {[%emt 0:00:46] Black must now prevent c4.} Be7 {[%emt 0:00:00]} 14. c4 {[%emt 0:02:05]} Bxg5 {[%emt 0:00:00]} 15. hxg5 {[%emt 0:00:04] Strongly threatening cxd5.} Ne7 {[%emt 0:00:00]} 16. Rfd1 {[%emt 0:08:36]} Qa6 {[%emt 0:00:00]} 17. Qf3 {[%emt 0:04:22]} dxc4 $2 {[%emt 0:00:00] This costs Black the game.} (17... Rc8 $14) 18. Ne4 $18 {[%emt 0:06:49] aiming for Nd6+.} O-O $2 {[%emt 0:00:00] [#]} (18... Nf5 $18 19. g6 Qc6) 19. Qxh5 {[%emt 0:01:41]} (19. Nf6+ $142 $1 {[%mdl 512]} gxf6 20. gxf6 Qc6 21. Qg3+ Ng6 22. Qg5 Kh7 23. Qxh5+ Kg8 24. Qh6) 19... Rfd8 {[%emt 0:00:00] [#]} 20. Nf6+ $1 {[%emt 0:06:38][%mdl 512] White mates.} gxf6 {[%emt 0:00:00]} 21. gxf6 {[%emt 0:00:05]} Nf5 {[%emt 0:00:00]} 22. g4 {[%emt 0:49:22][%cal Bg2g4,Bg4f5][%mdl 32]} Rd4 {[%emt 0:00:37]} 23. gxf5 {[%emt 0:00:00]} Rad8 {[%emt 0:00:37]} 24. Qg5+ {[%emt 0:00:00] Weighted Error Value: White=0.05 (flawless) /Black=0.90} 1-0

[Event "24th Hoogeschool Zeeland 2022"]
[Site "Vlissingen"]
[Date "2022.08.12"]
[Round "8.20"]
[White "Van der Kaap, Jos"]
[Black "Van de Poel, Taco"]
[Result "1-0"]
[ECO "D79"]
[WhiteElo "2187"]
[BlackElo "1818"]
[Annotator "TA"]
[PlyCount "55"]
[EventDate "2022.08.05"]
[EventType "swiss"]
[EventCountry "NED"]
[SourceTitle "playchess.com"]
[Source "ChessBase"]
[SourceQuality "1"]
[TimeControl "40/5400+30:1800+30"]

{[%evp 18,55,26,4,3,-5,-4,-9,-6,0,-6,-20,-18,-14,0,0,0,0,3,5,5,6,6,3,18,18,18,20,132,132,125,130,133,128,171,166,177,175,244,212]} 1. d4 {[%emt 0:00:05]} Nf6 {[%emt 0:00:12]} 2. Nf3 {[%emt 0:00:13]} g6 {[%emt 0:00:17]} 3. g3 {[%emt 0:00:13]} Bg7 {[%emt 0:00:25]} 4. Bg2 {[%emt 0:00:11]} c5 {[%emt 0:01:17]} 5. c3 {[%emt 0:00:56]} cxd4 {[%emt 0:01:00]} 6. cxd4 {[%emt 0:00:05]} d5 {[%emt 0:00:09]} 7. O-O {[%emt 0:00:12]} O-O {[%emt 0:01:10]} 8. Ne5 {[%emt 0:03:05]} Bf5 {[%emt 0:01:04]} 9. Nc3 {[%emt 0:02:42]} Ne4 {[%emt 0:02:47]} 10. Qb3 {[%emt 0:03:29]} Nc6 {[%emt 0:20:14] D79: Fianchetto Grünfeld: Symmetrical Variation (6 0-0 c6 7 cxd5 cxd5).} 11. Rd1 {[%emt 0:04:18][%cal Bf1d1,Bd1d4,Bd4d5,Bd5b5,Bb5b7][%mdl 32] [#]} Nxd4 $1 {[%emt 1:07:25]} 12. Rxd4 {[%emt 0:00:16]} Nxc3 {[%emt 0:00:00] The position is equal.} 13. bxc3 {[%emt 0:01:23] And now f4 would win.} Bxe5 {[%emt 0:00:00]} 14. Rxd5 {[%emt 0:04:40]} Qc7 {[%emt 0:00:00]} 15. Bh6 {[%emt 0:02:08]} Rfc8 {[%emt 0:00:00]} 16. Rb5 {[%emt 0:06:43] [#]} Qxc3 $146 {[%emt 0:00:00]} ({Predecessor:} 16... Be6 17. Qa3 Rab8 18. Rc1 b6 19. c4 a6 20. Rbb1 a5 21. Qe3 Qc5 22. Bd5 Bd4 {½-½ (49) Pert,N (2548)-Adhiban,B (2659) Chess.com INT 2020}) 17. Rf1 {[%emt 0:03:27]} Qxb3 {[%emt 0:00:00]} 18. axb3 {[%emt 0:00:11]} Bg7 {[%emt 0:00:00]} 19. Bxg7 {[%emt 0:04:54]} Kxg7 {[%emt 0:00:00]} 20. Rxb7 {[%emt 0:01:51]} Kf6 {[%emt 0:00:00]} 21. e4 {[%emt 0:08:24]} Be6 {[%emt 0:00:00]} ({Much less strong is} 21... Bg4 22. e5+ Kxe5 23. Rb4 $16 (23. Rxe7+ Kf6 $11)) 22. e5+ {[%emt 0:01:36]} Kxe5 {[%emt 0:00:00]} (22... Kg7 $11) 23. Rb5+ $16 {[%emt 0:00:54][%mdl 64] [#] Discovered Attack} ({Much weaker is} 23. Rxe7 $6 Rab8 $11) 23... Kf6 {[%emt 0:00:00]} 24. Bxa8 {[%emt 0:00:26]} Rxa8 {[%emt 0:00:00]} 25. Ra1 {[%emt 0:09:36]} a6 {[%emt 0:00:00]} 26. Rb6 {[%emt 0:08:51] White is clearly better.} a5 {[%emt 0:00:00]} 27. Ra4 {[%emt 0:00:38] Strongly threatening b4.} Kg7 {[%emt 0:00:00]} (27... Rd8 {was necessary.} 28. Rxa5 Rd1+ 29. Kg2 Kg7) 28. b4 {[%emt 0:01:28] Weighted Error Value: White=0.03 (flawless) /Black=0.23 (precise)} 1-0

[Event "24th Hoogeschool Zeeland 2022"]
[Site "Vlissingen"]
[Date "2022.08.12"]
[Round "8.21"]
[White "Galle, Andre"]
[Black "Duchene, Rene"]
[Result "0-1"]
[ECO "D34"]
[WhiteElo "1999"]
[BlackElo "2137"]
[Annotator "TA"]
[PlyCount "78"]
[EventDate "2022.08.05"]
[EventType "swiss"]
[EventCountry "NED"]
[SourceTitle "playchess.com"]
[Source "ChessBase"]
[SourceQuality "1"]
[TimeControl "40/5400+30:1800+30"]

{[%evp 24,78,6,9,33,-17,-18,-16,-25,-54,-43,-85,-64,-95,-88,-77,-90,-120,-118,-245,-230,-224,-214,-228,-235,-666,-661,-666,-306,-276,-257,-290,-261,-300,-295,-387,-389,-666,-662,-770,-745,-1003,-506,-1537,-1119,-697,-409,-427,-395,-491,-291,-322,-311,-1169,-1046,-1295,-1263]} 1. c4 {[%emt 0:00:02] Ernst,T} e6 {[%emt 0:00:31]} 2. Nc3 {[%emt 0:01:03]} d5 {[%emt 0:00:07]} 3. d4 {[%emt 0:00:13]} c5 {[%emt 0:00:13]} 4. cxd5 {[%emt 0:01:19]} exd5 {[%emt 0:00:08]} 5. Nf3 {[%emt 0:00:17]} Nc6 {[%emt 0:00:06]} 6. g3 {[%emt 0:00:36]} Nf6 {[%emt 0:00:22]} 7. Bg2 {[%emt 0:00:37]} Be7 {[%emt 0:00:18]} 8. O-O {[%emt 0:01:22]} O-O {[%emt 0:00:05]} 9. Bg5 {[%emt 0:01:39]} c4 {[%emt 0:00:21]} 10. Ne5 {[%emt 0:05:30]} Be6 {[%emt 0:01:25]} 11. f4 {[%emt 0:07:03]} Ng4 {[%emt 0:05:54][%cal Bf6g4,Bg4h6,Bh6f5][%mdl 32]} 12. Bxe7 {[%emt 0:07:11]} Nxe7 {[%emt 0:00:57]} 13. Qd2 {[%emt 0:11:41][%cal Of4f5] White wants to play f5!} Nh6 {[%emt 0:13:15] D34: Tarrasch Defence: 6 g3 Nf6 7 Bg2 Be7.} 14. h3 {[%emt 0:08:57]} ({Better is} 14. e4 $14 f6 15. exd5 fxe5 16. dxe5) 14... f6 $11 {[%emt 0:05:22]} 15. Nf3 {[%emt 0:04:00]} Nhf5 {[%emt 0:10:09] [#] The position is equal.} 16. Kh2 $146 {[%emt 0:04:06]} ({Predecessor:} 16. g4 Nd6 17. f5 Bf7 18. Qf4 b5 19. Rad1 Qd7 20. Ne5 Qb7 21. Nxf7 Nxf7 22. e4 {0-1 (70) Onischuk,A (2535)-Graf,A (2575) Alushta 1994 CBM 042 [Ernst,T]}) 16... Nd6 {[%emt 0:01:51]} 17. Qe3 {[%emt 0:06:00]} Bf7 {[%emt 0:03:40]} 18. g4 {[%emt 0:05:10]} Re8 {[%emt 0:00:37]} 19. Qf2 {[%emt 0:07:44][%cal Of3e5]} Ne4 {[%emt 0:16:07]} 20. Nxe4 {[%emt 0:01:47]} dxe4 {[%emt 0:00:06]} 21. Nd2 {[%emt 0:01:59] [#]} (21. Nh4 $17) 21... e3 $1 $19 {[%emt 0:01:26]} 22. Qxe3 {[%emt 0:00:51]} Nd5 {[%emt 0:00:45] Prevents Qc3.} 23. Qf2 {[%emt 0:02:04]} Ne3 {[%emt 0:00:33][%mdl 64] Discovered Attack} 24. Bxb7 $2 {[%emt 0:09:38]} (24. Nf3) 24... Rb8 {[%emt 0:03:01]} 25. Bc6 {[%emt 0:01:44]} Qxd4 {[%emt 0:00:51]} (25... Rxb2 $142 26. Bxe8 Qxe8) 26. Bxe8 {[%emt 0:00:58]} Rxe8 {[%emt 0:00:15]} ({Weaker is} 26... Bxe8 27. Nf3 Nxf1+ 28. Kg1 Qxf4 29. Kxf1 $17) 27. Nf3 {[%emt 0:03:25]} Nxf1+ {[%emt 0:03:38]} ({Not} 27... Qxf4+ 28. Kg1 $17) 28. Rxf1 {[%emt 0:00:58]} Qxb2 {[%emt 0:00:44]} 29. Nd4 {[%emt 0:03:10]} c3 {[%emt 0:01:00][%cal Bc4c3,Bc3c2][%mdl 32]} 30. g5 $2 {[%emt 0:01:40]} (30. e3) 30... c2 {[%emt 0:00:55]} 31. Qg1 {[%emt 0:00:35]} fxg5 {[%emt 0:04:20]} 32. fxg5 {[%emt 0:00:32]} Bd5 {[%emt 0:03:46] [#] aiming for ...Qc3.} 33. g6 {[%emt 0:01:41]} (33. Rc1 $142 Rf8 34. Qe3 Qb8+ 35. Kg1) 33... Qb8+ {[%emt 0:12:30]} 34. Qg3 {[%emt 0:00:21]} Be4 {[%emt 0:01:49]} 35. gxh7+ {[%emt 0:00:37]} Bxh7 {[%emt 0:00:30]} 36. Rc1 {[%emt 0:00:32]} Rc8 {[%emt 0:03:49]} (36... Qd8 $142 37. e3 Qa5) 37. Qxb8 {[%emt 0:00:41]} Rxb8 {[%emt 0:00:06]} 38. Kg3 $2 {[%emt 0:00:25]} (38. Nb3 Re8 39. Re1) 38... Rb1 {[%emt 0:00:20]} 39. Nb3 {[%emt 0:00:10]} a5 {[%emt 0:00:31] White got outplayed after the opening.  Weighted Error Value: White=1.23/Black=0.70} 0-1

[Event "24th Hoogeschool Zeeland 2022"]
[Site "Vlissingen"]
[Date "2022.08.12"]
[Round "8.22"]
[White "Lacrosse, Marc"]
[Black "Zevenhuizen, Daniel"]
[Result "0-1"]
[ECO "E94"]
[WhiteElo "2003"]
[BlackElo "2168"]
[Annotator "TA"]
[PlyCount "98"]
[EventDate "2022.08.05"]
[EventType "swiss"]
[EventCountry "NED"]
[SourceTitle "playchess.com"]
[Source "ChessBase"]
[SourceQuality "1"]
[TimeControl "40/5400+30:1800+30"]

{[%evp 15,98,35,59,31,30,29,31,9,0,0,16,-4,9,9,10,0,0,9,16,0,20,11,23,7,11,-18,-11,-22,41,37,63,0,0,0,0,-44,-20,-82,-85,-78,-61,-98,-106,-232,-218,-437,-433,-433,-428,-628,-437,-413,-411,-604,-587,-587,-364,-434,-362,-533,-525,-489,-262,-639,-343,-327,-274,-358,-338,-418,-409,-360,-330,-29954,-559,-1272,-1281,-1184,-1225,-1184,-1154,-1083,-771,-596,-596]} 1. d4 {[%emt 0:00:44]} Nf6 {[%emt 0:04:13]} 2. c4 {[%emt 0:00:15]} g6 {[%emt 0:00:06]} 3. Nc3 {[%emt 0:00:23]} Bg7 {[%emt 0:00:07]} 4. e4 {[%emt 0:00:18]} d6 {[%emt 0:00:16]} 5. Be2 {[%emt 0:01:01]} O-O {[%emt 0:00:36]} 6. Nf3 {[%emt 0:02:18]} e5 {[%emt 0:00:49]} 7. Be3 {[%emt 0:05:09]} Na6 {[%emt 0:01:52]} 8. O-O {[%emt 0:02:04]} Qe7 {[%emt 0:01:13][%cal Of6e4] 8...c6 is becoming the main line.} 9. dxe5 {[%emt 0:05:25] E94: King's Indian: Classical: 6 Be2 e5 7 0-0: Various Black 7th moves.} dxe5 {[%emt 0:00:19]} 10. Nd5 {[%emt 0:03:52]} Qd8 {[%emt 0:03:35] [#]} 11. Qb1 $146 {[%emt 0:13:40] White is slightly better.} ({Predecessor:} 11. Bg5 Nc5 12. Nxf6+ Bxf6 13. Qxd8 Bxd8 14. Bxd8 Rxd8 15. Nxe5 Rd2 16. Bf3 Rxb2 17. Rfb1 Rxb1+ 18. Rxb1 {0-1 (40) Navara,D (2697)-Adhiban,B (2660) chess24.com INT 2021}) 11... Ng4 {[%emt 0:07:49]} 12. Bg5 {[%emt 0:01:39]} f6 {[%emt 0:00:24]} 13. Bh4 {[%emt 0:07:42]} g5 {[%emt 0:06:58]} 14. Bg3 {[%emt 0:01:13]} c6 {[%emt 0:00:06]} 15. Nc3 {[%emt 0:02:06]} Qe7 {[%emt 0:00:16]} 16. a3 {[%emt 0:11:23]} Nh6 {[%emt 0:11:17]} 17. b4 $36 {[%emt 0:09:43][%mdl 2048] White has good play.} Nc7 {[%emt 0:17:44]} 18. c5 {[%emt 0:05:26]} Ne6 {[%emt 0:05:39]} 19. Rd1 {[%emt 0:02:29]} Kh8 {[%emt 0:12:14]} 20. Ra2 {[%emt 0:05:21]} g4 {[%emt 0:02:10]} 21. Nh4 {[%emt 0:05:36]} Nf4 {[%emt 0:04:23]} (21... Nd4 $11) 22. Bc4 $14 {[%emt 0:00:59]} f5 {[%emt 0:05:14]} 23. Nxf5 {[%emt 0:01:52]} (23. Rad2 $14) 23... Nxf5 $11 {[%emt 0:00:04]} 24. exf5 {[%emt 0:00:30]} Bxf5 {[%emt 0:00:03]} 25. Ne4 {[%emt 0:03:57]} Rad8 {[%emt 0:06:17]} 26. Rad2 {[%emt 0:01:13] [#]} (26. Rxd8 $11 Rxd8 27. Qe1 Bxe4 28. Qxe4) 26... Rxd2 $1 $17 {[%emt 0:00:21]} 27. Rxd2 {[%emt 0:00:11] [#]} h5 $1 {[%emt 0:03:20]} 28. Qe1 {[%emt 0:05:01]} h4 {[%emt 0:03:32]} 29. Bxf4 {[%emt 0:00:05] This move loses the game for White.} (29. Nd6 $17 hxg3 30. hxg3) 29... exf4 $19 {[%emt 0:00:04]} 30. f3 {[%emt 0:01:11]} (30. Re2 f3 31. Re3) 30... gxf3 {[%emt 0:02:20]} 31. gxf3 {[%emt 0:00:14]} Bc3 $1 {[%emt 0:00:50] And now ...Bxe4 would win. This bishop pair is nice.} 32. Kf1 {[%emt 0:02:29]} (32. Rd7 $142 Qxd7 33. Qxc3+ Qg7+ 34. Qxg7+ Kxg7 35. Nd6) 32... Bxd2 {[%emt 0:00:32]} 33. Qxd2 {[%emt 0:00:19]} Bxe4 {[%emt 0:01:24]} 34. Qd4+ {[%emt 0:00:02]} (34. fxe4 $142 Rd8 35. Qc3+ Qg7 36. Qe1) 34... Kh7 {[%emt 0:00:20]} 35. fxe4 {[%emt 0:00:31][%mdl 4096] Endgame KQR-KQB} Re8 {[%emt 0:00:35] Strongly threatening ...Rd8.} 36. Bd3 {[%emt 0:00:15]} Kh6 {[%emt 0:00:33]} 37. Ke2 {[%emt 0:01:07]} (37. Be2 $142) 37... Qe5 {[%emt 0:00:41]} 38. Qd7 {[%emt 0:00:32]} Re7 {[%emt 0:00:31]} (38... f3+ $142 39. Kxf3 Rf8+ 40. Ke3 Qf4+ 41. Kd4 Qxh2) 39. Qd8 $2 {[%emt 0:00:26]} (39. Qh3) 39... Qf6 {[%emt 0:00:37][%cal Oe7e4] aiming for ...Rxe4+!} 40. Kf3 {[%emt 0:00:46]} Kg7 {[%emt 0:00:14]} 41. Bc4 {[%emt 0:03:51]} Qe5 {[%emt 0:07:17]} 42. Qg8+ {[%emt 0:05:14]} Kh6 {[%emt 0:00:07]} 43. Qf8+ {[%emt 0:01:49]} Kg6 {[%emt 0:02:32]} 44. Kg4 $2 {[%emt 0:06:29]} (44. Qg8+ $19 Kh6 45. Qf8+ Kg5 46. Qg8+ Qg7 47. Qd8) 44... h3 {[%emt 0:10:45]} (44... Qh5+ $142 45. Kxf4 Qe5+ 46. Kf3 Qxe4+ 47. Kf2 Qd4+ 48. Kg2 h3+ 49. Kxh3 Re3+ 50. Kg2 Qxc4 51. Qd6+ Re6 52. Qg3+ Kh6 53. Qh3+ Kg7 54. Qg3+ Rg6 55. a4 Qc2+ 56. Kh3 Rxg3+ 57. Kxg3 Qxa4 58. Kg4 Qxb4+ 59. Kf5 Kh6 60. h3 Qxc5+ 61. Kf4 b5 62. h4 b4 63. h5 b3 64. Kf3 b2 65. Ke2 b1=Q 66. Kf3 Qbf5+ 67. Kg2 Qg4+ 68. Kh2 Qcxh5#) 45. Qxf4 {[%emt 0:10:58] Black is clearly winning.} Qxe4 {[%emt 0:01:47]} 46. Bf7+ {[%emt 0:02:19]} Kg7 {[%emt 0:00:07] ( -> ...Qe2+)} 47. Qxe4 {[%emt 0:00:42]} Rxe4+ {[%emt 0:00:10]} 48. Kf3 {[%emt 0:00:58]} Rd4 {[%emt 0:00:11]} 49. Ke3 {[%emt 0:01:39]} Rd1 {[%emt 0:00:07] Weighted Error Value: White=0.76/Black=0.66} 0-1

[Event "24th Hoogeschool Zeeland 2022"]
[Site "Vlissingen"]
[Date "2022.08.12"]
[Round "8.23"]
[White "Verwoert, Jef"]
[Black "Tabak, Stefan"]
[Result "1/2-1/2"]
[WhiteElo "1998"]
[BlackElo "2181"]
[Annotator "TA"]
[PlyCount "19"]
[EventDate "2022.08.05"]
[EventType "swiss"]
[EventCountry "NED"]
[SourceTitle "playchess.com"]
[Source "ChessBase"]
[SourceQuality "1"]
[TimeControl "40/5400+30:1800+30"]

{[%evp 9,19,17,40,39,45,38,83,81,76,18,60,60]} 1. Nc3 {[%emt 0:00:03]} d5 {[%emt 0:00:47]} 2. e4 {[%emt 0:00:08]} dxe4 {[%emt 0:02:06]} 3. Nxe4 {[%emt 0:00:12]} e5 {[%emt 0:01:27]} 4. Bc4 {[%emt 0:01:45]} Nc6 {[%emt 0:06:39]} 5. Nf3 {[%emt 0:05:29]} h6 {[%emt 0:08:04]} 6. O-O {[%emt 0:08:32][%cal Od2d4] A00: Irregular Openings.} Nf6 {[%emt 0:15:20]} 7. Re1 {[%emt 0:13:17] [#]} Nxe4 $146 {[%emt 0:21:49]} ({Predecessor:} 7... Be7 8. Nxf6+ Bxf6 9. h3 O-O 10. d3 Bf5 11. a3 Re8 12. Nd2 Be6 13. Bb5 a6 14. Bxc6 bxc6 15. Ne4 Bd5 16. Be3 Bxe4 17. dxe4 Qxd1 18. Rexd1 {1-0 (18) Tegelidis,P (2115)-Mourtzouni,M (1755) Mitilini 2008}) 8. Rxe4 {[%emt 0:03:05]} Bf5 {[%emt 0:03:43]} 9. Re1 {[%emt 0:10:29]} (9. Rxe5+ $16 Nxe5 10. Nxe5) 9... Qf6 {[%emt 0:10:24]} 10. Bd5 $1 {[%emt 0:08:27] Weighted Error Value: White=0.23 (precise) /Black=0.21 (precise)} 1/2-1/2

[Event "24th Hoogeschool Zeeland 2022"]
[Site "Vlissingen"]
[Date "2022.08.12"]
[Round "8.24"]
[White "Cordes, Hans-Joerg"]
[Black "Bazilius, Augustinas"]
[Result "1/2-1/2"]
[ECO "B07"]
[WhiteElo "2154"]
[BlackElo "2045"]
[Annotator "TA"]
[PlyCount "103"]
[EventDate "2022.08.05"]
[EventType "swiss"]
[EventCountry "NED"]
[SourceTitle "playchess.com"]
[Source "ChessBase"]
[SourceQuality "1"]
[TimeControl "40/5400+30:1800+30"]

{[%evp 12,103,34,36,34,45,52,50,86,94,95,89,127,0,0,0,0,0,0,0,0,0,91,21,24,0,99,91,102,71,73,27,94,95,96,101,210,219,220,232,232,240,339,235,239,225,225,172,262,262,259,257,250,175,199,151,187,190,190,190,186,158,158,151,151,151,151,151,151,0,151,0,159,167,255,158,142,134,225,222,281,62,138,8,8,8,8,8,8,8,8,8,8,8]} 1. d4 {[%emt 0:00:06]} Nf6 {[%emt 0:00:26]} 2. Nc3 {[%emt 0:00:49]} g6 {[%emt 0:00:12]} 3. Bf4 {[%emt 0:00:25]} d6 {[%emt 0:01:15]} 4. e4 {[%emt 0:00:33]} c6 {[%emt 0:00:57]} 5. Qd2 {[%emt 0:01:26]} Bg7 {[%emt 0:02:03]} 6. Bh6 {[%emt 0:03:21]} Bxh6 {[%emt 0:00:13]} 7. Qxh6 {[%emt 0:00:08]} e5 {[%emt 0:02:19] B07: Pirc Defence: Miscellaneous Systems.} 8. Nf3 {[%emt 0:02:35]} Nbd7 {[%emt 0:08:20][%cal Bb8d7,Bd7e5,Be5g4,Bg4f2][%mdl 32]} 9. Bc4 {[%emt 0:06:31]} exd4 {[%emt 0:35:09] White is slightly better.} 10. Nxd4 {[%emt 0:03:43]} (10. Qg7 Rf8 11. Nxd4 Ne5 $15) 10... Ne5 {[%emt 0:01:35] [#]} 11. Be2 $146 {[%emt 0:02:50]} ({Predecessor:} 11. Bb3 Neg4 12. Qg7 Rf8 13. h3 Ne5 14. Qh6 Qe7 15. f4 Ned7 16. O-O-O Nc5 17. Nf3 Ncxe4 {1-0 (23) Matthews,M (1499)-Tosney,P (1489) IECC email 2004}) 11... Neg4 {[%emt 0:06:45]} 12. Qg5 {[%emt 0:18:19]} (12. Qd2 $1 $16) 12... Nxf2 $1 $11 {[%emt 0:08:04]} 13. O-O {[%emt 0:23:35]} (13. Kxf2 $2 Ng4+ $1 {[%mdl 512]} 14. Qxg4 Bxg4 15. Bxg4 Qh4+ 16. Kf3 d5 $19) 13... N2xe4 {[%emt 0:02:41]} 14. Nxe4 {[%emt 0:00:55]} Nxe4 {[%emt 0:00:09]} 15. Qxd8+ {[%emt 0:00:11]} ({Don't play} 15. Qf4 Qe7 16. Bf3 f5 17. Bxe4 fxe4 $17) 15... Kxd8 {[%emt 0:00:12]} 16. Rxf7 {[%emt 0:00:03]} Re8 {[%emt 0:05:26]} (16... d5 $11) 17. Raf1 {[%emt 0:10:03]} (17. Rxh7 $16 {aiming for Rf1.} c5 18. Bb5 cxd4 19. Bxe8 Kxe8 20. Rf1) 17... c5 {[%emt 0:08:10]} 18. Nb5 {[%emt 0:02:33]} (18. Bb5 $5 {[%cal Rb5e8]} Re7 19. Rf8+ Kc7 20. Ne2 $11) 18... Ng5 {[%emt 0:07:03]} (18... Bd7 $1 $11) 19. Rf8 $16 {[%emt 0:01:03]} Ne6 {[%emt 0:03:13]} 20. Rxe8+ {[%emt 0:05:33]} Kxe8 {[%emt 0:00:01]} 21. Re1 {[%emt 0:01:58]} ({White should try} 21. Bc4 $16 {Threatens to win with Bxe6.} a6 22. Nxd6+ Ke7 23. Ne4) 21... a6 {[%emt 0:03:55]} (21... Kd7 $1 $11) 22. Nxd6+ {[%emt 0:01:01]} Ke7 {[%emt 0:00:06]} 23. Ne4 {[%emt 0:03:49] White is more active.} Bd7 {[%emt 0:02:30]} (23... b6 $16) 24. Bg4 $1 $18 {[%emt 0:00:40]} Rc8 {[%emt 0:00:45]} 25. Ng5 $1 {[%emt 0:01:26][%cal Rg4e6]} Rc6 {[%emt 0:00:22]} 26. Nxh7 {[%emt 0:00:11]} Kd6 {[%emt 0:00:39]} (26... Kd8 $142 27. Nf6 Ke7) 27. Rd1+ {[%emt 0:00:44]} Ke7 {[%emt 0:00:49] [#]} 28. Rxd7+ $1 {[%emt 0:00:40][%mdl 512]} Kxd7 {[%emt 0:00:05][%mdl 4096] Endgame KRN-KBN} 29. Nf8+ {[%emt 0:00:32]} Ke7 {[%emt 0:01:02]} (29... Kd6 {keeps fighting.} 30. Nxe6 (30. Bxe6 Ke7 $11) 30... Rb6) 30. Nxe6 {[%emt 0:00:07]} Rd6 {[%emt 0:00:03]} ({Not} 30... Rxe6 31. Bxe6 Kxe6 32. Kf2 $16) 31. Nxc5 {[%emt 0:05:00] Black must now prevent Bf3.} Rd2 {[%emt 0:00:10]} 32. Nxb7 {[%emt 0:02:11]} Rxc2 {[%emt 0:00:01]} 33. a4 {[%emt 0:01:44]} (33. b3 $18) 33... Rc4 {[%emt 0:01:29]} 34. Be2 {[%emt 0:00:51]} Rxa4 {[%emt 0:00:27]} 35. Nc5 {[%emt 0:00:31][%csl LRa4,LRa6]} Ra2 {[%emt 0:00:11]} 36. Nxa6 {[%emt 0:00:29] Strongly threatening Bd3.} Rxb2 {[%emt 0:00:02]} 37. Kf2 {[%emt 0:00:13]} Kd6 {[%emt 0:01:28]} 38. Ke3 {[%emt 0:00:25]} Rb3+ {[%emt 0:00:27]} 39. Kd2 {[%emt 0:01:31]} Rb2+ {[%emt 0:00:34]} 40. Ke3 {[%emt 0:00:04]} Rb3+ $1 {[%emt 0:00:10]} 41. Kf2 {[%emt 0:05:30]} Rb2 {[%emt 0:00:36]} 42. h4 {[%emt 0:00:20]} Rb3 {[%emt 0:01:35]} (42... Ra2 {is a better defense.} 43. g3 Ra4) 43. Bc4 {[%emt 0:01:51]} Ra3 {[%emt 0:04:52] [#]} 44. g3 $1 {[%emt 0:03:30]} Kc6 {[%emt 0:03:20]} (44... Ra1 $16 45. Bd3 Ra3) 45. Be2 {[%emt 0:03:05]} Rb3 {[%emt 0:00:44]} 46. g4 $2 {[%emt 0:01:52]} (46. Bf3+ $18 Kd6 47. Be4) 46... Kd6 {[%emt 0:04:16] [#]} (46... Rh3 $1 $14) 47. g5 {[%emt 0:01:12]} ({White should play} 47. Kg2 $1 $16) 47... Rh3 $11 {[%emt 0:01:43] The position is equal.} 48. Nb4 $1 {[%emt 0:01:06]} Rxh4 {[%emt 0:00:07]} 49. Nd3 {[%emt 0:00:14]} Ra4 {[%emt 0:02:17]} 50. Ke3 {[%emt 0:00:33]} Ra3 {[%emt 0:04:53]} 51. Bf3 {[%emt 0:00:18] And now Be4 would win.} Rxd3+ $1 {[%emt 0:01:18]} 52. Kxd3 {[%emt 0:00:13] Weighted Error Value: White=0.39/Black=0.23 (precise)} 1/2-1/2